bitfinex/quotes_SOLUSD_20260203
["timestamp","ask_amount","ask_price","bid_price","bid_amount"]
[1770120351885,69.96689556,102.67,102.63,1.30741122]
[1770120352094,69.96689556,102.67,102.62,1.75506199]
[1770120352095,1.02840578,102.66,102.62,1.75506199]
[1770120352275,35.89761136,102.66,102.62,1.75506199]
[1770120352477,9.7418412,102.65,102.62,1.75506199]
[1770120352875,24.8706706,102.66,102.64,1.60154827]
[1770120353180,9.74044105,102.67,102.64,1.60154827]
[1770120353988,10.82900251,102.67,102.64,1.60154827]
[1770120354592,10.82900251,102.67,102.62,1.70154827]
[1770120354593,8.91736007,102.66,102.62,1.70154827]
[1770120355670,1.10815449,102.66,102.63,1.60154827]
[1770120357293,10.84935684,102.66,102.63,1.60154827]
[1770120358696,9.74120235,102.66,102.63,1.60154827]
[1770120358899,9.73999135,102.67,102.64,1.60154827]
[1770120359103,1.18430188,102.66,102.63,1.60154827]
[1770120359280,43.08335758,102.67,102.63,1.60154827]
[1770120359477,43.08335758,102.67,102.63,11.3452574]
[1770120359478,18.73349881,102.67,102.63,11.3452574]
[1770120359780,9.73999135,102.67,102.64,1.60154827]
[1770120360590,1.22107619,102.69,102.65,1.60154827]
[1770120360901,36.79751335,102.7,102.67,1.60154827]
[1770120361602,45.84586609,102.7,102.65,1.60154827]
[1770120362015,45.84586609,102.7,102.66,1.60154827]
[1770120362996,45.84586609,102.7,102.66,11.34239946]
[1770120363215,38.49299623,102.73,102.69,1.60154827]
[1770120363383,35.34842064,102.72,102.67,1.60154827]
[1770120363585,43.15762622,102.72,102.68,1.60154827]
[1770120364091,1.27466881,102.71,102.68,1.60154827]
[1770120365101,1.27466881,102.71,102.68,11.3405074]
[1770120366405,9.7357456,102.72,102.69,1.60154827]
[1770120366904,9.73462714,102.73,102.7,1.60154827]
[1770120367104,11.061063,102.73,102.69,1.60154827]
[1770120368505,11.061063,102.73,102.69,11.33956524]
[1770120369001,11.061063,102.73,102.63,1.60154827]
[1770120369002,1.35996383,102.69,102.63,1.60154827]
[1770120369198,9.16916941,102.67,102.63,1.60154827]
[1770120369790,1.35996383,102.67,102.63,1.60154827]
[1770120370287,11.10025722,102.67,102.63,19.15431567]
[1770120370908,11.10025722,102.67,102.64,1.60154827]
[1770120371203,11.13218981,102.68,102.64,1.60154827]
[1770120371911,9.7394638,102.68,102.64,1.60154827]
[1770120372210,9.7394638,102.68,102.64,11.34426776]
[1770120372808,9.7394638,102.68,102.65,1.60154827]
[1770120372994,43.30179448,102.69,102.65,1.60154827]
[1770120373499,11.14739428,102.69,102.65,1.60154827]
[1770120374506,9.73753925,102.7,102.66,1.60154827]
[1770120374806,9.73753925,102.7,102.67,1.60154827]
[1770120375310,35.53498636,102.71,102.67,1.60154827]
[1770120376203,43.34419194,102.71,102.67,1.60154827]
[1770120376510,7.80920558,102.7,102.67,1.60154827]
[1770120377790,43.34419194,102.71,102.67,1.60154827]
[1770120379991,9.73667783,102.71,102.68,1.60154827]
[1770120380191,11.26781685,102.71,102.67,11.34137908]
[1770120382611,19.08718246,102.71,102.67,11.34137908]
[1770120382805,9.40755071,102.68,102.64,1.97225427]
[1770120383211,7.81936561,102.67,102.64,1.97225427]
[1770120383407,9.42140508,102.67,102.64,1.97225427]
[1770120383808,73.02165494,102.71,102.64,1.97225427]
[1770120383809,1.60203947,102.69,102.65,1.97225427]
[1770120384421,9.73667783,102.71,102.68,9.79161988]
[1770120384720,9.73540389,102.72,102.7,1.97225427]
[1770120385020,35.68289478,102.74,102.7,1.97225427]
[1770120385223,11.34958904,102.74,102.7,9.79161988]
[1770120385999,11.3620409,102.75,102.71,1.97225427]
[1770120386203,9.73276826,102.75,102.72,1.97225427]
[1770120386994,1.91528494,102.76,102.72,1.97225427]
[1770120387199,10.01782129,102.76,102.73,1.97225427]
[1770120388420,0.2860123,102.76,102.74,1.97225427]
[1770120388610,0.2860123,102.76,102.74,7.81936561]
[1770120388802,0.2860123,102.76,102.75,1.97225427]
[1770120389117,9.73014424,102.78,102.75,1.97225427]
[1770120390523,9.72800532,102.8,102.77,1.97225427]
[1770120390914,9.72800532,102.8,102.76,1.97225427]
[1770120390915,11.67877974,102.8,102.76,1.97225427]
[1770120391105,7.81936561,102.79,102.76,1.97225427]
[1770120391913,35.99784588,102.8,102.73,1.97225427]
[1770120391914,9.77014003,102.77,102.73,1.97225427]
[1770120392232,7.81936561,102.76,102.73,1.97225427]
[1770120392396,9.77014003,102.77,102.73,1.97225427]
[1770120392597,7.81936561,102.76,102.73,1.97225427]
[1770120392913,9.77014003,102.77,102.73,1.97225427]
[1770120393318,17.55077861,102.76,102.73,1.97225427]
[1770120393823,9.731413,102.76,102.73,1.97225427]
[1770120394623,19.50109334,102.77,102.73,1.97225427]
[1770120395126,17.55031892,102.77,102.73,1.97225427]
[1770120395324,9.73095331,102.77,102.74,1.97225427]
[1770120399739,17.55031892,102.77,102.74,1.97225427]
[1770120401653,19.50109334,102.77,102.74,1.97225427]
[1770120403440,9.77014003,102.76,102.69,1.97225427]
[1770120403640,34.05711853,102.77,102.71,1.97225427]
[1770120403641,7.81936561,102.74,102.71,1.97225427]
[1770120403838,9.77014003,102.75,102.71,11.70839521]
[1770120404744,19.5034474,102.74,102.71,1.97225427]
[1770120406447,43.83671584,102.74,102.71,1.97225427]
[1770120406647,17.55439366,102.73,102.7,1.97225427]
[1770120408140,7.81936561,102.72,102.69,1.97225427]
[1770120408850,36.02478646,102.72,102.69,1.97225427]
[1770120409071,43.84415207,102.72,102.69,1.97225427]
[1770120409846,19.50614584,102.72,102.69,1.97225427]
[1770120413044,9.73600581,102.72,102.69,1.97225427]
[1770120413252,9.85093746,102.74,102.7,2.04705445]
[1770120413541,43.91814797,102.74,102.7,2.04705445]
[1770120413746,34.06721051,102.74,102.71,2.04705445]
[1770120414343,43.91814797,102.74,102.71,2.04705445]
[1770120414539,9.85093746,102.73,102.69,11.78459982]
[1770120414738,9.85093746,102.73,102.7,2.04705445]
[1770120414945,7.81936561,102.73,102.7,2.04705445]
[1770120415153,43.91814797,102.74,102.71,2.04705445]
[1770120415355,19.58481761,102.74,102.71,2.04705445]
[1770120415734,9.73388015,102.74,102.71,2.04705445]
[1770120416466,36.0956597,102.75,102.72,2.04705445]
[1770120418344,9.7329481,102.75,102.73,2.04705445]
[1770120420961,9.7329481,102.75,102.72,2.04705445]
[1770120421761,9.7329481,102.75,102.73,2.04705445]
[1770120421962,11.76311863,102.76,102.73,2.04705445]
[1770120422164,9.73096189,102.77,102.74,2.04705445]
[1770120422351,2.03157185,102.77,102.74,2.04705445]
[1770120422546,9.85093746,102.76,102.73,2.04705445]
[1770120422768,2.03157185,102.74,102.7,2.04705445]
[1770120422974,9.85093746,102.73,102.7,2.04705445]
[1770120423756,9.85093746,102.74,102.7,2.04705445]
[1770120423958,9.85093746,102.75,102.7,2.04705445]
[1770120424157,9.85093746,102.75,102.71,9.73601457]
[1770120424158,19.58394808,102.75,102.71,9.73601457]
[1770120424358,19.58394808,102.75,102.71,11.78306902]
[1770120424665,19.58394808,102.75,102.71,9.73601457]
[1770120424876,9.85093746,102.77,102.73,2.04705445]
[1770120425057,9.73097577,102.77,102.73,2.04705445]
[1770120425559,11.76254762,102.77,102.74,2.04705445]
[1770120426656,9.73097577,102.77,102.74,2.04705445]
[1770120426863,43.90807845,102.77,102.73,2.04705445]
[1770120427253,36.08871284,102.77,102.73,2.04705445]
[1770120428065,34.05714099,102.77,102.74,2.04705445]
[1770120428971,43.90807845,102.77,102.74,2.04705445]
[1770120429159,36.08871284,102.77,102.74,2.04705445]
[1770120429869,2.03157185,102.75,102.72,2.04705445]
[1770120430079,2.03157185,102.74,102.7,2.04705445]
[1770120430373,14.68318692,102.74,102.71,2.04705445]
[1770120430869,11.76538293,102.74,102.71,2.04705445]
[1770120432074,9.73270339,102.75,102.71,9.73574905]
[1770120432274,9.73172212,102.76,102.73,2.04705445]
[1770120434386,2.03157185,102.74,102.7,9.7365799]
[1770120434574,9.8424561,102.74,102.7,9.7365799]
[1770120435281,11.76549409,102.74,102.7,9.7365799]
[1770120436257,19.57637834,102.74,102.7,2.04705445]
[1770120436574,11.76549409,102.74,102.7,2.04705445]
[1770120436975,11.76549409,102.74,102.71,2.04705445]
[1770120437286,9.73392224,102.74,102.71,2.04705445]
[1770120437581,11.76549409,102.74,102.71,2.04705445]
[1770120437763,9.73392224,102.74,102.71,2.04705445]
[1770120440683,11.81759633,102.74,102.71,2.04705445]
[1770120443286,9.73392224,102.74,102.71,2.04705445]
[1770120443461,11.81759633,102.74,102.71,2.04705445]
[1770120446684,2.08367409,102.73,102.7,11.97993507]
[1770120448688,11.81824047,102.73,102.7,2.24350936]
[1770120450082,11.81745819,102.74,102.71,2.24350936]
[1770120450285,11.81745819,102.74,102.71,7.81362471]
[1770120450589,2.08367409,102.75,102.72,2.24350936]
[1770120451786,11.81656724,102.75,102.72,2.24350936]
[1770120457303,9.73289315,102.75,102.73,2.24350936]
[1770120457594,36.14431444,102.76,102.73,2.24350936]
[1770120460211,2.08367409,102.75,102.72,2.24350936]
[1770120460397,2.08367409,102.75,102.72,5.16044972]
[1770120460582,2.08367409,102.75,102.73,2.24350936]
[1770120460782,2.08367409,102.76,102.73,2.24350936]
[1770120462186,9.73236009,102.75,102.73,2.24350936]
[1770120462386,9.73157188,102.76,102.74,2.24350936]
[1770120462607,9.73094534,102.77,102.75,2.24350936]
[1770120463712,11.81461943,102.77,102.74,2.24350936]
[1770120466011,11.81461943,102.77,102.74,11.97673489]
[1770120467791,11.8122469,102.79,102.75,2.24350936]
[1770120467992,9.92619381,102.82,102.78,2.91694036]
[1770120468191,5.28395341,102.82,102.8,5.16044972]
[1770120468501,0.2,102.82,102.8,5.16044972]
[1770120469208,24.31050394,102.84,102.8,5.16044972]
[1770120469209,9.72289742,102.85,102.81,2.24350936]
[1770120469411,9.72289742,102.85,102.81,5.16044972]
[1770120469704,27.42387879,102.86,102.83,2.24350936]
[1770120469705,9.92225119,102.86,102.83,2.24350936]
[1770120469885,12.00592528,102.86,102.83,2.20643037]
[1770120470088,12.00592528,102.86,102.82,12.6419155]
[1770120470290,12.00592528,102.86,102.82,9.72497514]
[1770120470788,12.00592528,102.86,102.82,2.91694036]
[1770120471005,2.16038445,102.84,102.81,9.72643664]
[1770120471802,2.16038445,102.84,102.81,11.82801797]
[1770120472707,2.16038445,102.84,102.81,2.10158133]
[1770120473007,4.93510389,102.83,102.79,2.09139046]
[1770120473191,2.01816353,102.82,102.79,2.09139046]
[1770120473587,2.01816353,102.83,102.79,11.81970796]
[1770120474006,11.74361796,102.83,102.79,2.09139046]
[1770120474192,2.01816353,102.82,102.79,2.09139046]
[1770120474893,2.01816353,102.82,102.79,5.00833082]
[1770120475802,2.01816353,102.82,102.79,2.09139046]
[1770120476003,11.74428178,102.82,102.79,2.09139046]
[1770120477117,2.01816353,102.81,102.78,12.64594673]
[1770120477624,2.01816353,102.81,102.78,14.73733719]
[1770120478215,11.74428178,102.82,102.79,2.09139046]
[1770120480226,11.74346765,102.83,102.8,2.09139046]
[1770120480799,9.72437409,102.84,102.82,2.09139046]
[1770120481116,11.74143793,102.85,102.82,2.09139046]
[1770120481319,11.74143793,102.85,102.82,5.00833082]
[1770120481696,2.01816353,102.85,102.82,14.73389512]
[1770120482023,11.74123395,102.85,102.82,5.00833082]
[1770120482207,11.74123395,102.85,102.82,2.09139046]
[1770120482416,0.2,102.86,102.83,2.09139046]
[1770120482705,0.2,102.86,102.84,2.09139046]
[1770120482706,9.92215354,102.86,102.84,2.09139046]
[1770120482901,9.92215354,102.86,102.83,2.09139046]
[1770120483598,9.92215354,102.86,102.82,12.64198946]
[1770120483599,12.8390939,102.86,102.82,2.09139046]
[1770120483799,2.01816353,102.85,102.82,2.09139046]
[1770120484000,36.24519748,102.86,102.82,2.09139046]
[1770120484825,36.24519748,102.86,102.82,14.73403199]
[1770120485323,9.92198109,102.86,102.83,5.00833082]
[1770120485903,9.92198109,102.86,102.83,2.09139046]
[1770120486612,0.2,102.86,102.83,11.81560387]
[1770120486806,11.94012874,102.86,102.83,2.09139046]
[1770120487918,2.01816353,102.85,102.82,2.09139046]
[1770120489115,2.01816353,102.84,102.81,2.09139046]
[1770120490122,9.72384286,102.84,102.81,2.09139046]
[1770120491129,9.72345158,102.85,102.82,5.00833082]
[1770120491427,9.92233974,102.86,102.83,5.00833082]
[1770120492728,9.92233974,102.86,102.83,2.09139046]
[1770120494626,9.92233974,102.86,102.84,2.09139046]
[1770120494923,11.94050327,102.86,102.83,2.09139046]
[1770120495122,2.01816353,102.85,102.82,5.00833082]
[1770120495326,2.01816353,102.85,102.82,2.09139046]
[1770120495732,36.24538368,102.86,102.82,2.09139046]
[1770120496426,2.01816353,102.85,102.82,2.09139046]
[1770120496929,11.74170062,102.85,102.82,2.09139046]
[1770120498823,11.74170062,102.85,102.81,14.73448871]
[1770120499023,2.01816353,102.84,102.81,2.09139046]
[1770120499224,4.93510389,102.84,102.8,2.09139046]
[1770120499615,2.01816353,102.84,102.8,2.09139046]
[1770120500031,2.01816353,102.84,102.8,14.73591464]
[1770120500234,34.03078064,102.85,102.82,2.17800408]
[1770120500612,36.15521544,102.85,102.82,2.17800408]
[1770120502027,2.1244348,102.84,102.8,14.82208786]
[1770120502330,2.1244348,102.84,102.81,2.17800408]
[1770120502531,36.15521544,102.85,102.81,5.08932914]
[1770120504438,9.9222176,102.86,102.83,2.17800408]
[1770120504635,9.9222176,102.86,102.84,2.17800408]
[1770120505219,0.2,102.87,102.86,2.17800408]
[1770120507421,0.2,102.88,102.87,2.17800408]
[1770120507620,0.2,102.89,102.87,5.08932914]
[1770120507940,0.2,102.91,102.89,2.17800408]
[1770120508618,9.91723949,102.91,102.89,2.17800408]
[1770120508938,0.2,102.91,102.89,2.17800408]
[1770120509717,9.91723314,102.91,102.89,2.17800408]
[1770120511540,26.61309992,102.93,102.89,5.08932914]
[1770120511838,26.61309992,102.93,102.89,4.09843489]
[1770120513043,9.71628449,102.92,102.89,4.09843489]
[1770120513550,12.04023361,102.93,102.89,13.81738126]
[1770120513952,2.1244348,102.9,102.86,1.20379802]
[1770120514246,2.1244348,102.9,102.87,10.92459479]
[1770120514427,2.1244348,102.9,102.87,13.83591985]
[1770120514629,2.1244348,102.9,102.87,4.11512308]
[1770120515043,2.1244348,102.9,102.87,1.20379802]
[1770120515845,2.1244348,102.9,102.87,4.11512308]
[1770120516048,2.1244348,102.9,102.87,13.83566179]
[1770120516242,11.84295799,102.9,102.87,4.11512308]
[1770120516441,2.1244348,102.9,102.87,10.92467242]
[1770120516642,2.1244348,102.9,102.87,13.83599748]
[1770120516845,11.84272946,102.9,102.87,4.11512308]
[1770120517151,11.84272946,102.9,102.86,13.86797629]
[1770120517343,2.1244348,102.9,102.87,13.86744019]
[1770120518649,11.84268191,102.9,102.87,4.14653255]
[1770120519746,11.84268191,102.9,102.87,1.23520749]
[1770120520127,11.84268191,102.9,102.87,4.14653255]
[1770120521049,11.84268191,102.9,102.87,13.86742881]
[1770120521444,11.84268191,102.9,102.87,4.14653255]
[1770120522029,11.84268191,102.9,102.87,13.86745025]
[1770120522235,11.84205456,102.91,102.87,13.86745025]
[1770120523051,2.1244348,102.9,102.87,13.86745025]
[1770120523253,2.1244348,102.9,102.87,4.14653255]
[1770120525336,11.84295125,102.9,102.87,4.14653255]
[1770120526152,11.84211162,102.91,102.88,3.86033182]
[1770120526446,9.71767682,102.91,102.89,3.86033182]
[1770120527951,0.2,102.93,102.9,2.91132506]
[1770120528145,0.2,102.95,102.93,2.91132506]
[1770120529248,12.0381099,102.95,102.91,13.48805282]
[1770120529654,12.0381099,102.95,102.92,0.83105086]
[1770120530058,2.1244348,102.94,102.91,3.74237592]
[1770120530236,2.1244348,102.94,102.91,13.45957607]
[1770120530838,2.1244348,102.94,102.91,3.74237592]
[1770120531743,11.8389425,102.94,102.91,3.74237592]
[1770120532657,11.8389425,102.94,102.91,13.45958453]
[1770120532843,2.1244348,102.94,102.91,13.45958453]
[1770120533855,11.83896796,102.94,102.91,13.45958453]
[1770120535760,11.83896796,102.94,102.91,3.74237592]
[1770120536460,11.83896796,102.94,102.91,13.45948648]
[1770120538872,11.97868405,102.95,102.92,3.44474561]
[1770120539962,2.06508977,102.94,102.91,12.62843562]
[1770120540467,2.06508977,102.94,102.91,13.11168892]
[1770120541169,2.26508977,102.95,102.92,3.39457836]
[1770120542056,2.06508977,102.94,102.91,13.08703662]
[1770120542758,11.97886421,102.95,102.92,3.34555692]
[1770120543564,2.26508977,102.95,102.92,13.06172053]
[1770120543769,15.93970458,102.96,102.94,2.91132506]
[1770120543770,6.22663699,102.96,102.94,2.91132506]
[1770120544270,18.00433221,102.96,102.93,2.91132506]
[1770120544446,2.06508977,102.95,102.91,13.0144666]
[1770120544645,2.06508977,102.95,102.92,3.29765514]
[1770120545371,11.77891777,102.95,102.91,13.0144666]
[1770120545671,2.06508977,102.95,102.92,3.2741161]
[1770120546050,18.00480082,102.96,102.92,3.2741161]
[1770120546359,2.06508977,102.95,102.91,12.96765889]
[1770120547449,2.06508977,102.94,102.91,12.96765889]
[1770120547648,2.06508977,102.94,102.91,10.05633383]
[1770120548549,2.06508977,102.94,102.91,12.96765889]
[1770120548744,2.06508977,102.94,102.92,2.91132506]
[1770120548967,40.22093259,102.96,102.93,2.91132506]
[1770120548968,2.06508977,102.95,102.93,2.91132506]
[1770120549169,8.29172676,102.96,102.94,2.91132506]
[1770120549379,6.22663699,102.96,102.94,2.91132506]
[1770120549555,6.22663699,102.96,102.94,12.62571615]
[1770120550275,6.22663699,102.96,102.94,12.89702385]
[1770120551159,8.29172676,102.96,102.93,12.62613573]
[1770120552275,8.29172676,102.96,102.94,2.91132506]
[1770120552446,6.22663699,102.96,102.94,2.91132506]
[1770120552651,6.22663699,102.96,102.94,3.11674173]
[1770120553269,18.00426503,102.96,102.93,12.8315524]
[1770120553976,8.29172676,102.96,102.93,12.8315524]
[1770120558779,8.29172676,102.96,102.94,2.91132506]
[1770120558969,6.22663699,102.96,102.94,2.99161669]
[1770120560374,6.22663699,102.96,102.95,2.91132506]
[1770120560883,6.22663699,102.96,102.94,12.70567482]
[1770120561496,6.22663699,102.96,102.95,2.91132506]
[1770120561785,7.94749564,102.96,102.94,12.62538319]
[1770120561983,6.22663699,102.96,102.94,12.62538319]
[1770120562286,7.94749564,102.96,102.94,2.91132506]
[1770120562463,7.94749564,102.96,102.94,12.62560766]
[1770120564486,7.94749564,102.96,102.91,34.01030025]
[1770120564684,7.94749564,102.96,102.94,2.9034579]
[1770120565591,1.72085865,102.95,102.94,2.9034579]
[1770120565884,1.72085865,102.95,102.93,2.9034579]
[1770120566086,7.94749564,102.96,102.93,2.9034579]
[1770120566285,7.94749564,102.96,102.94,2.9034579]
[1770120569783,7.94749564,102.96,102.93,12.61808748]
[1770120572501,6.22663699,102.96,102.94,2.9034579]
[1770120572807,1.72085865,102.97,102.95,2.9034579]
[1770120572973,1.72085865,102.98,102.96,2.9034579]
[1770120573389,11.43157558,102.98,102.95,2.9034579]
[1770120575289,1.72085865,102.97,102.95,2.9034579]
[1770120577003,1.72085865,102.97,102.95,12.61676941]
[1770120577496,11.43157558,102.98,102.95,12.61676941]
[1770120578171,1.72085865,102.97,102.93,12.6183916]
[1770120579899,1.72085865,102.97,102.93,9.7149337]
[1770120580192,1.72085865,102.97,102.93,12.6183916]
[1770120580397,1.72085865,102.96,102.93,12.6183916]
[1770120581590,1.72085865,102.96,102.93,9.7149337]
[1770120581893,1.72085865,102.96,102.93,12.6183916]
[1770120583296,1.72085865,102.96,102.94,2.9034579]
[1770120589208,1.72085865,102.96,102.93,12.61817758]
[1770120592809,1.72085865,102.96,102.94,2.9034579]
[1770120594810,1.72085865,102.96,102.93,2.9034579]
[1770120595598,1.72085865,102.96,102.94,2.9034579]
[1770120598724,1.72085865,102.96,102.91,34.01030025]
[1770120598897,1.72085865,102.96,102.93,2.9034579]
[1770120599929,1.72085865,102.96,102.91,34.01030025]
[1770120599930,1.72085865,102.95,102.91,9.71722864]
[1770120600226,1.72085865,102.94,102.88,24.29816859]
[1770120600431,1.72085865,102.94,102.9,9.71806244]
[1770120601306,1.72085865,102.93,102.9,9.71806244]
[1770120604026,1.72085865,102.93,102.9,2.9034579]
[1770120604328,1.72085865,102.93,102.91,2.9034579]
[1770120604537,1.72085865,102.99,102.92,2.9034579]
[1770120604708,1.72085865,102.99,102.95,2.9034579]
[1770120606126,1.72085865,102.97,102.95,2.9034579]
[1770120607424,1.72085865,102.97,102.94,12.61748307]
[1770120610314,1.72085865,102.97,102.95,2.9034579]
[1770120615933,1.72085865,102.96,102.92,34.00699572]
[1770120616232,1.72085865,102.94,102.9,12.62121972]
[1770120616534,1.72085865,102.94,102.89,12.6221575]
[1770120617743,1.72085865,102.93,102.89,2.9034579]
[1770120618230,1.72085865,102.92,102.89,12.62254077]
[1770120618824,1.72085865,102.92,102.9,2.9034579]
[1770120619223,1.72085865,102.93,102.9,2.9034579]
[1770120619834,1.72085865,102.94,102.91,2.9034579]
[1770120620535,1.72085865,102.94,102.91,12.62042431]
[1770120624423,1.72085865,102.94,102.91,12.62232934]
[1770120626243,1.72085865,102.93,102.91,2.90536293]
[1770120626537,1.72085865,102.93,102.91,12.62252915]
[1770120631545,1.72085865,102.93,102.91,9.71716622]
[1770120631747,1.72085865,102.93,102.9,12.62298069]
[1770120631950,1.72085865,102.93,102.91,12.62241386]
[1770120632352,1.72085865,102.93,102.91,9.71705093]
[1770120632531,1.72085865,102.93,102.91,12.62241386]
[1770120635550,1.72085865,102.93,102.89,24.29737784]
[1770120635855,1.72085865,102.92,102.89,12.62389706]
[1770120636054,1.72085865,102.93,102.9,12.62351457]
[1770120637754,1.72085865,102.92,102.9,12.62351457]
[1770120637951,1.72085865,102.92,102.9,2.90536293]
[1770120638136,1.72085865,102.92,102.9,12.62345795]
[1770120639058,1.72085865,102.94,102.91,2.90536293]
[1770120639357,1.72085865,102.93,102.91,2.90536293]
[1770120640354,1.72085865,102.93,102.91,12.62247648]
[1770120647079,1.72085865,102.97,102.92,2.90536293]
[1770120647259,1.72085865,102.96,102.92,2.90536293]
[1770120647652,1.72085865,102.95,102.91,9.71711355]
[1770120649871,1.72085865,102.94,102.91,2.90536293]
[1770120651970,1.72085865,102.94,102.91,12.12246716]
[1770120653552,1.72085865,102.94,102.91,9.71710423]
[1770120653755,1.72085865,102.94,102.91,12.62246716]
[1770120655686,1.72085865,102.93,102.91,2.90536293]
[1770120655890,1.72085865,102.93,102.88,2.90536293]
[1770120656357,1.72085865,102.93,102.88,12.6248354]
[1770120656760,1.72085865,102.93,102.89,9.71897492]
[1770120659176,1.72085865,102.91,102.88,2.90536293]
[1770120660581,1.72085865,102.91,102.88,12.62450628]
[1770120661881,1.72085865,102.91,102.89,2.90536293]
[1770120662679,1.72085865,102.91,102.89,9.71910066]
[1770120663075,1.72085865,102.9,102.86,2.90536293]
[1770120663278,1.72085865,102.9,102.86,12.62681341]
[1770120663669,1.72085865,102.9,102.87,9.72093317]
[1770120664381,2.90536293,102.9,102.87,9.72093317]
[1770120664586,1.72085865,102.89,102.87,9.72093317]
[1770120664964,1.72085865,102.89,102.85,34.0283546]
[1770120665566,1.72085865,102.89,102.85,36.93371753]
[1770120670290,1.72085865,102.91,102.88,2.90536293]
[1770120670590,1.72085865,102.92,102.89,2.90536293]
[1770120671376,1.72085865,102.92,102.89,12.62396482]
[1770120671867,1.72085865,102.92,102.89,9.71860189]
[1770120672168,1.72085865,102.91,102.88,2.90536293]
[1770120673266,1.72085865,102.91,102.89,9.71906709]
[1770120677076,1.72085865,102.92,102.89,36.92222378]
[1770120678791,1.72085865,102.92,102.88,36.92558065]
[1770120680074,1.72085865,102.92,102.89,2.90536293]
[1770120680973,1.72085865,102.92,102.9,9.71817298]
[1770120684396,1.72085865,102.92,102.89,24.2977927]
[1770120685596,1.72085865,102.92,102.88,36.92665606]
[1770120691702,1.72085865,102.92,102.89,2.90643834]
[1770120692283,1.72085865,102.92,102.88,34.02021772]
[1770120692482,1.72085865,102.92,102.89,2.90643834]
[1770120693003,1.72085865,102.92,102.88,36.92665606]
[1770120693702,1.72085865,102.92,102.89,2.90643834]
[1770120693898,1.72085865,102.92,102.9,9.71817298]
[1770120697400,1.72085865,102.93,102.9,9.71817298]
[1770120697607,1.72085865,102.94,102.91,2.90643834]
[1770120699907,1.72085865,102.94,102.91,12.62274471]
[1770120700204,1.72085865,102.94,102.91,9.71630637]
[1770120703612,1.72085865,102.93,102.9,9.7176577]
[1770120703909,1.72085865,102.93,102.89,34.01691126]
[1770120704110,1.72085865,102.93,102.89,36.9233496]
[1770120707813,1.72085865,102.93,102.9,2.90643834]
[1770120708806,1.72085865,102.93,102.89,2.90643834]
[1770120710116,1.72085865,102.93,102.9,9.71817298]
[1770120713722,1.72085865,102.92,102.9,9.71817298]
[1770120716521,1.72085865,102.93,102.9,36.92004377]
[1770120716917,1.72085865,102.94,102.9,36.92004377]
[1770120717100,1.72085865,102.94,102.91,2.90643834]
[1770120717708,1.72085865,102.94,102.92,2.90643834]
[1770120717907,9.71292479,102.96,102.92,12.9300724]
[1770120718529,9.71292479,102.96,102.92,12.92719722]
[1770120719118,33.99077261,102.97,102.92,12.92719722]
[1770120719829,0.96760984,102.96,102.92,12.92719722]
[1770120720132,0.96760984,102.95,102.92,12.92719722]
[1770120724436,0.96760984,102.95,102.92,10.02075888]
[1770120728235,0.96760984,102.95,102.92,12.92719722]
[1770120728434,0.96760984,102.96,102.94,3.20263641]
[1770120728745,0.96760984,102.98,102.95,3.20263641]
[1770120729035,0.96760984,102.99,102.96,3.20263641]
[1770120729334,0.96760984,103.0,102.98,2.90643834]
[1770120730218,0.96760984,103.0,102.97,2.90643834]
[1770120730418,0.96760984,102.99,102.96,2.90643834]
[1770120731541,0.96760984,102.99,102.96,12.61889072]
[1770120732328,0.96760984,102.99,102.97,2.90643834]
[1770120734846,0.96760984,102.99,102.97,0.88805426]
[1770120736644,0.96760984,102.98,102.9,0.92839085]
[1770120736843,0.96760984,102.98,102.94,2.90643834]
[1770120737236,0.96760984,102.98,102.94,12.62076]
[1770120737744,0.96760984,102.98,102.95,2.90643834]
[1770120738240,10.67891108,102.98,102.95,2.90643834]
[1770120738548,0.96760984,102.97,102.94,12.62076]
[1770120739439,0.96760984,102.97,102.95,2.90643834]
[1770120739859,0.96760984,102.97,102.96,2.90643834]
[1770120740163,9.70966142,103.0,102.96,2.90643834]
[1770120740464,33.98150608,103.0,102.96,2.90643834]
[1770120742262,0.77558239,102.99,102.96,2.90643834]
[1770120743263,10.49251642,102.99,102.96,3.88328061]
[1770120743757,0.78863506,102.98,102.96,3.88328061]
[1770120743962,0.78863506,102.98,102.96,2.90643834]
[1770120744141,0.78863506,102.98,102.96,3.88328061]
[1770120744665,10.50541917,102.99,102.96,3.88328061]
[1770120744853,10.50541917,102.99,102.97,2.90643834]
[1770120745840,0.79710933,102.98,102.96,3.88328061]
[1770120746362,10.50951582,102.99,102.96,3.87972904]
[1770120747469,0.80115893,103.0,102.98,3.87972904]
[1770120747666,9.9084888,103.01,102.98,3.87972904]
[1770120747865,9.9084888,103.01,102.97,3.93603386]
[1770120748163,9.9084888,103.01,102.97,1.03314709]
[1770120748765,37.08086396,103.01,102.96,3.93603386]
[1770120750264,34.17797719,103.01,102.96,3.93603386]
[1770120750664,34.17797719,103.01,102.96,13.64851054]
[1770120752770,34.17797719,103.01,102.97,1.03314709]
[1770120753267,34.17797719,103.01,102.97,3.93603386]
[1770120754372,0.0206497,103.0,102.97,3.93603386]
[1770120754671,0.0206497,103.0,102.98,3.93603386]
[1770120755172,0.0206497,103.0,102.98,2.90288677]
[1770120757173,0.2,103.01,102.99,3.93603386]